bitfinex/quotes_BTCUSD_20251016
["timestamp","ask_amount","ask_price","bid_price","bid_amount"]
[1760607326496,8e-05,110180.0,110170.0,0.08329891]
[1760607326734,8e-05,110180.0,110170.0,0.4]
[1760607326974,8e-05,110180.0,110170.0,0.69405762]
[1760607327204,0.01008,110180.0,110170.0,0.4]
[1760607327420,0.01008,110180.0,110170.0,5.01e-05]
[1760607327896,3.299349,110180.0,110170.0,5.01e-05]
[1760607328320,0.02916377,110180.0,110170.0,5.01e-05]
[1760607328526,3.09083277,110180.0,110170.0,5.01e-05]
[1760607328745,2.97843277,110180.0,110170.0,5.01e-05]
[1760607328954,0.02916377,110180.0,110170.0,0.18158772]
[1760607329164,0.02916377,110180.0,110170.0,5.01e-05]
[1760607329368,0.05309009,110180.0,110170.0,0.18158772]
[1760607329581,0.00098362,110170.0,110150.0,0.18156144]
[1760607329792,0.02006739,110170.0,110160.0,0.1815541]
[1760607329996,0.05399129,110170.0,110160.0,0.1815541]
[1760607330221,0.05399129,110170.0,110150.0,0.1816116]
[1760607330222,0.05399129,110170.0,110150.0,0.18161587]
[1760607330433,0.0239239,110160.0,110150.0,0.18161587]
[1760607330655,0.06300767,110160.0,110150.0,0.18162074]
[1760607330874,0.06300767,110160.0,110150.0,5.016e-05]
[1760607331087,0.03908377,110160.0,110150.0,5.016e-05]
[1760607331324,0.06300291,110160.0,110150.0,0.18162074]
[1760607331536,0.03908377,110160.0,110150.0,5.016e-05]
[1760607333136,2.98835277,110160.0,110150.0,5.016e-05]
[1760607333606,3.10011277,110160.0,110150.0,5.016e-05]
[1760607333827,4.21866536,110160.0,110150.0,5.016e-05]
[1760607334468,4.25484764,110160.0,110150.0,5.016e-05]
[1760607334686,3.65784915,110160.0,110150.0,5.016e-05]
[1760607334918,4.21850536,110160.0,110150.0,5.016e-05]
[1760607335137,3.50990687,110160.0,110150.0,5.016e-05]
[1760607335411,0.00098362,110110.0,110100.0,0.0717521]
[1760607335625,0.00098362,110110.0,110100.0,0.25355488]
[1760607335626,0.01098362,110110.0,110100.0,0.25355488]
[1760607335873,0.01098362,110110.0,110100.0,0.00014974]
[1760607336089,2.96025262,110110.0,110100.0,0.00014974]
[1760607336559,2.9794045,110110.0,110100.0,0.00014974]
[1760607336784,2.96025262,110110.0,110100.0,0.00014974]
[1760607337030,0.01098362,110110.0,110100.0,0.00014974]
[1760607337262,0.01098362,110110.0,110100.0,0.18180278]
[1760607337495,0.00098362,110110.0,110100.0,0.21814971]
[1760607337723,0.00098362,110110.0,110100.0,0.18180278]
[1760607337941,0.01098362,110110.0,110100.0,0.18180278]
[1760607338606,0.01098362,110110.0,110100.0,0.00014974]
[1760607339468,0.01098362,110110.0,110090.0,0.18087561]
[1760607339681,0.01098362,110110.0,110090.0,5.016e-05]
[1760607339905,2.949269,110100.0,110090.0,5.016e-05]
[1760607340139,0.06915579,110100.0,110090.0,5.016e-05]
[1760607340379,0.05,110100.0,110090.0,0.1817197]
[1760607340794,0.05,110100.0,110090.0,5.016e-05]
[1760607341214,0.06915579,110100.0,110090.0,5.016e-05]
[1760607341429,0.06915579,110100.0,110090.0,0.1817197]
[1760607341696,0.11088,110110.0,110100.0,0.18165202]
[1760607341904,0.08970918,110110.0,110100.0,0.08432316]
[1760607342140,0.05,110110.0,110100.0,0.08432316]
[1760607342353,0.05,110110.0,110100.0,0.24975949]
[1760607342561,0.34,110130.0,110120.0,0.18162005]
[1760607342562,2.949269,110130.0,110120.0,0.18162005]
[1760607342784,3.060029,110150.0,110120.0,0.05189151]
[1760607343071,0.81726061,110150.0,110140.0,0.02432125]
[1760607343291,3.34652961,110150.0,110140.0,0.04378071]
[1760607343524,3.34652961,110150.0,110140.0,0.01945946]
[1760607343749,3.05419903,110150.0,110140.0,0.04378071]
[1760607343972,3.16487903,110150.0,110140.0,0.04378071]
[1760607344198,3.34803131,110150.0,110140.0,0.04383087]
[1760607344420,3.16646073,110150.0,110140.0,0.04383087]
[1760607344643,3.34981846,110150.0,110140.0,0.04383087]
[1760607344865,3.05756788,110150.0,110140.0,0.04352152]
[1760607345310,3.16808788,110150.0,110140.0,0.0516286]
[1760607345552,3.34965846,110150.0,110140.0,0.07599756]
[1760607345771,3.05756788,110150.0,110140.0,0.0516286]
[1760607346007,3.34961846,110150.0,110140.0,0.0516286]
[1760607346240,3.34961846,110150.0,110140.0,0.04356842]
[1760607346471,4.32279923,110150.0,110140.0,0.01920027]
[1760607346698,3.57913846,110150.0,110140.0,0.01920027]
[1760607346919,3.16792788,110150.0,110140.0,0.04356842]
[1760607347134,3.34949846,110150.0,110140.0,0.04356842]
[1760607347375,3.34791676,110150.0,110140.0,5.016e-05]
[1760607347608,3.23755676,110150.0,110140.0,5.016e-05]
[1760607347835,3.34795676,110150.0,110140.0,5.016e-05]
[1760607348056,3.23755676,110150.0,110140.0,5.016e-05]
[1760607348249,0.18168602,110140.0,110130.0,0.02436815]
[1760607348469,3.28595387,110140.0,110130.0,0.02445878]
[1760607348685,3.1043668,110140.0,110130.0,9.063e-05]
[1760607348893,3.2146068,110140.0,110130.0,9.063e-05]
[1760607349114,0.13840896,110140.0,110130.0,0.20606233]
[1760607349362,0.13840896,110140.0,110130.0,0.03242833]
[1760607349588,0.13840896,110140.0,110130.0,0.02438093]
[1760607349824,0.13840896,110140.0,110130.0,0.20598448]
[1760607350047,0.11864896,110140.0,110130.0,0.23024605]
[1760607350261,0.00840896,110140.0,110130.0,0.23024605]
[1760607351371,4.54768096,110140.0,110130.0,0.18160355]
[1760607351579,0.00840896,110140.0,110130.0,0.18160355]
[1760607351789,0.00840896,110140.0,110130.0,0.23024605]
[1760607352011,0.00840896,110140.0,110130.0,0.18160355]
[1760607352465,0.00840896,110140.0,110130.0,0.24620153]
[1760607352688,0.00840896,110140.0,110130.0,0.23014151]
[1760607353120,0.00840896,110140.0,110130.0,0.18133783]
[1760607353565,0.00840896,110140.0,110130.0,0.0648637]
[1760607353782,4.66871251,110140.0,110130.0,0.2304533]
[1760607353999,4.66871251,110140.0,110130.0,0.18160355]
[1760607354444,4.66863251,110140.0,110130.0,0.2304533]
[1760607354668,0.12936051,110140.0,110130.0,0.04884975]
[1760607354916,0.12936051,110140.0,110120.0,0.04884975]
[1760607355141,4.539272,110130.0,110120.0,0.04884975]
[1760607355373,0.00890585,110130.0,110120.0,0.2304698]
[1760607355633,0.00918426,110130.0,110120.0,0.18162005]
[1760607355863,0.11882426,110130.0,110120.0,0.18162005]
[1760607356083,0.00918426,110130.0,110120.0,0.24648375]
[1760607356358,0.00918426,110130.0,110120.0,0.18162005]
[1760607356642,0.00087425,110130.0,110120.0,0.26270116]
[1760607356879,0.00014819,110140.0,110130.0,0.18160355]
[1760607357099,0.00850641,110140.0,110130.0,0.26307524]
[1760607357317,0.00850641,110140.0,110130.0,0.15794398]
[1760607357318,0.00850915,110140.0,110130.0,0.15794398]
[1760607357529,0.00014819,110140.0,110130.0,0.25399964]
[1760607357743,0.00014819,110140.0,110130.0,0.23941567]
[1760607357948,0.00014819,110140.0,110130.0,0.94573416]
[1760607358163,0.00014819,110140.0,110130.0,0.34873567]
[1760607358371,0.00014819,110140.0,110130.0,0.26726398]
[1760607358581,0.00014819,110140.0,110130.0,0.33241758]
[1760607358790,0.00014819,110140.0,110130.0,0.31534839]
[1760607358997,0.00014819,110140.0,110130.0,0.40503851]
[1760607359208,1e-08,110140.0,110130.0,0.4865102]
[1760607359855,1e-08,110140.0,110130.0,0.97418869]
[1760607360065,1e-08,110140.0,110130.0,1.001797]
[1760607360277,1e-08,110140.0,110130.0,1.341797]
[1760607360711,1e-08,110140.0,110130.0,0.85831207]
[1760607360909,1e-08,110140.0,110130.0,1.34623056]
[1760607361121,1e-08,110140.0,110130.0,1.45523056]
[1760607361539,1e-08,110140.0,110130.0,1.39281373]
[1760607362018,1e-08,110140.0,110130.0,1.39320772]
[1760607362245,1e-08,110140.0,110130.0,1.28420772]
[1760607362544,0.00059575,110140.0,110130.0,0.82578968]
[1760607362756,1e-08,110140.0,110130.0,1.17770527]
[1760607362967,1e-08,110140.0,110130.0,1.63097576]
[1760607363181,1e-08,110140.0,110130.0,1.74488331]
[1760607363401,1e-08,110140.0,110130.0,1.63612331]
[1760607363629,1e-08,110140.0,110130.0,1.80187313]
[1760607363890,1e-08,110140.0,110130.0,1.69315313]
[1760607364134,1e-08,110140.0,110130.0,1.0962741]
[1760607364353,1e-08,110140.0,110130.0,1.17752939]
[1760607364631,1e-08,110140.0,110130.0,0.9876341]
[1760607364868,1e-08,110140.0,110130.0,0.31263285]
[1760607365094,0.01000001,110140.0,110130.0,0.15794398]
[1760607365322,0.01000001,110140.0,110130.0,0.20669886]
[1760607365775,0.01000001,110140.0,110120.0,0.23037493]
[1760607366054,4.539272,110130.0,110100.0,0.23946187]
[1760607366283,4.76922533,110130.0,110090.0,0.23950553]
[1760607366511,4.539272,110120.0,110100.0,0.18165102]
[1760607366738,4.539272,110110.0,110090.0,0.19075065]
[1760607366996,4.360199,110110.0,110080.0,0.19075979]
[1760607367272,0.06504081,110110.0,110080.0,0.19076826]
[1760607367510,4.320199,110100.0,110090.0,0.18166915]
[1760607367780,0.05,110130.0,110100.0,0.19073259]
[1760607368010,4.320199,110110.0,110100.0,0.19073259]
[1760607368231,4.420199,110110.0,110100.0,0.19073259]
[1760607368457,0.1,110110.0,110090.0,0.19075262]
[1760607368686,0.1,110110.0,110100.0,0.18165304]
[1760607368925,0.1,110110.0,110100.0,0.19981834]
[1760607369172,0.1,110110.0,110100.0,0.18165304]
[1760607369618,0.1,110110.0,110100.0,0.17983312]
[1760607370291,0.1,110110.0,110100.0,0.18165304]
[1760607370512,0.1,110110.0,110100.0,0.21890842]
[1760607370956,0.1,110110.0,110100.0,0.18165304]
[1760607371641,0.1,110110.0,110100.0,0.24665179]
[1760607371868,0.0763411,110130.0,110120.0,0.18162005]
[1760607372099,4.39353288,110140.0,110130.0,0.18160355]
[1760607372317,4.619801,110140.0,110130.0,0.20598939]
[1760607372555,4.4401289,110140.0,110130.0,0.20598939]
[1760607372777,0.11834813,110140.0,110130.0,0.60598939]
[1760607372984,4.43019901,110140.0,110130.0,0.58160355]
[1760607373206,4.43854682,110140.0,110130.0,0.4]
[1760607373412,4.43854661,110140.0,110130.0,0.42438876]
[1760607373618,4.43854661,110140.0,110130.0,0.20599231]
[1760607373836,4.43854661,110140.0,110130.0,0.02438876]
[1760607374061,4.38854661,110140.0,110130.0,0.20599231]
[1760607374267,4.38019901,110140.0,110130.0,0.02438876]
[1760607374704,4.38019901,110140.0,110130.0,0.20599231]
[1760607374920,4.38854564,110140.0,110120.0,0.42438876]
[1760607375131,4.427799,110130.0,110120.0,0.02453695]
[1760607375370,4.537799,110130.0,110120.0,0.206157]
[1760607375783,4.54903746,110130.0,110120.0,0.20588389]
[1760607375997,4.537799,110130.0,110120.0,0.02426384]
[1760607376230,4.537799,110130.0,110120.0,0.20431389]
[1760607376443,0.11,110130.0,110120.0,0.18176824]
[1760607376659,0.21736,110130.0,110120.0,0.18176824]
[1760607377087,4.537559,110130.0,110120.0,0.18176824]
[1760607377522,4.5391407,110130.0,110120.0,0.18176824]
[1760607378186,0.1115817,110130.0,110120.0,0.18176824]
[1760607378397,0.1115817,110130.0,110120.0,0.31175168]
[1760607378619,0.11,110130.0,110120.0,0.31175168]
[1760607378846,0.11,110130.0,110120.0,0.23053543]
[1760607379060,0.11,110130.0,110120.0,0.63053543]
[1760607379505,0.1817521,110130.0,110120.0,0.62962379]
[1760607379755,5.07190066,110130.0,110120.0,0.04462521]
[1760607379972,5.07190066,110130.0,110070.0,0.06499875]
[1760607379973,0.18164328,110110.0,110070.0,0.06499875]
[1760607380225,4.320199,110090.0,110060.0,0.19544939]
[1760607380433,0.10712,110080.0,110060.0,0.18636131]
[1760607380652,4.320199,110070.0,110060.0,0.18636442]
[1760607380867,4.420199,110070.0,110060.0,0.00464536]
[1760607381086,0.20708,110070.0,110060.0,0.20453632]
[1760607381324,0.1,110070.0,110060.0,0.62589644]
[1760607381612,0.1,110070.0,110060.0,0.58636442]
[1760607381855,0.10015017,110070.0,110060.0,0.58636442]
[1760607382751,0.10015017,110070.0,110060.0,0.40464536]
[1760607382977,0.10015017,110070.0,110060.0,0.58636442]
[1760607383215,0.20703017,110070.0,110060.0,0.58636442]
[1760607384097,0.20703017,110070.0,110060.0,0.40464536]
[1760607384321,4.52722917,110070.0,110060.0,0.00464536]
[1760607384548,4.70893172,110070.0,110060.0,0.00464536]
[1760607385462,4.70873172,110070.0,110060.0,0.00464536]
[1760607385685,5.05031446,110070.0,110060.0,0.00464536]
[1760607386149,5.06693845,110070.0,110060.0,0.00464536]
[1760607386372,5.10312073,110070.0,110060.0,1e-08]
[1760607386857,4.99644073,110070.0,110060.0,1e-08]
[1760607387101,4.9586688,110070.0,110060.0,1e-08]
[1760607387305,5.06986377,110070.0,110060.0,1e-08]
[1760607388670,5.10604605,110070.0,110060.0,1e-08]
[1760607388893,5.12029278,110070.0,110060.0,1e-08]
[1760607389116,5.12029278,110070.0,110010.0,0.0717521]
[1760607389117,4.50198412,110020.0,110010.0,0.0717521]
[1760607389375,4.73826412,110020.0,110010.0,0.0717521]
[1760607389601,4.320199,110010.0,109990.0,0.66267743]
[1760607389830,4.320199,110000.0,109990.0,0.59569879]
[1760607390073,4.57237877,110040.0,110000.0,0.19090908]
[1760607390297,4.320199,110020.0,110000.0,0.19090908]
[1760607390519,4.320199,110000.0,109990.0,0.40477346]
[1760607390751,4.440199,110000.0,109990.0,0.58660784]
[1760607390979,0.12,110000.0,109990.0,0.58660784]
[1760607391190,4.440199,110000.0,109990.0,0.58660817]
[1760607391407,4.440199,110000.0,109990.0,0.00477346]
[1760607391849,4.440349,110000.0,109990.0,0.00477346]
[1760607392272,0.12015,110000.0,109990.0,0.00477346]
[1760607392489,0.12015,110000.0,109990.0,0.7393733]
[1760607392704,0.12015,110000.0,109990.0,0.72118983]
[1760607392925,0.12015,110000.0,109990.0,0.73568073]
[1760607393184,0.22607,110000.0,109990.0,0.00477346]
[1760607393425,4.546269,110000.0,109990.0,0.00477346]
[1760607393653,4.96216718,110000.0,109990.0,0.00477346]
[1760607393883,5.06808718,110000.0,109990.0,0.00477346]
[1760607394117,5.10426946,110000.0,109990.0,0.00477346]
[1760607394345,5.12236329,110000.0,109990.0,0.00477346]
[1760607394592,0.18183471,109990.0,109980.0,0.0004]
[1760607394822,5.03322594,109990.0,109970.0,0.0004]
[1760607395049,4.87823252,109980.0,109970.0,0.0004]
[1760607395280,4.97205024,109980.0,109970.0,0.0004]
[1760607395515,4.896079,109980.0,109970.0,0.0004]
[1760607395743,5.07793024,109980.0,109970.0,0.0004]
[1760607396000,5.07793024,109980.0,109970.0,1e-08]
[1760607396001,5.64869418,109980.0,109970.0,1e-08]
[1760607396238,4.8421164,109940.0,109930.0,0.0004]
[1760607396492,4.790199,109940.0,109930.0,0.0004]
[1760607397219,4.556039,109940.0,109930.0,0.18233395]
[1760607397460,4.55614886,109940.0,109930.0,0.0004]
[1760607397692,4.55614886,109940.0,109930.0,0.18233395]
[1760607397921,4.45034886,109940.0,109930.0,0.18233395]
[1760607398153,4.45034886,109940.0,109920.0,0.08274857]
[1760607398154,4.320199,109930.0,109920.0,0.08274857]
[1760607398379,4.450199,109930.0,109920.0,0.08274857]
[1760607399106,0.13,109930.0,109920.0,0.10094362]
[1760607399916,0.13,109930.0,109920.0,0.50094362]
[1760607400141,0.13,109930.0,109920.0,0.48274857]
[1760607400835,0.13,109930.0,109920.0,0.45264857]
[1760607401362,0.00014986,109940.0,109920.0,0.45682987]
[1760607401609,0.00014986,109940.0,109920.0,0.5819505]
[1760607401610,4.425639,109930.0,109920.0,0.5819505]
[1760607401855,0.23544,109930.0,109920.0,0.1819505]
[1760607402095,4.555639,109930.0,109920.0,0.1819505]
[1760607402318,4.555559,109930.0,109920.0,0.1819505]
[1760607402545,0.13,109930.0,109920.0,0.1819505]
[1760607402770,0.23536,109930.0,109920.0,0.1819505]
[1760607403020,0.13,109930.0,109920.0,0.71653216]
[1760607403972,0.13,109930.0,109920.0,0.1819505]
[1760607404209,0.00014986,109940.0,109930.0,0.18193395]
[1760607404449,0.03014986,109940.0,109930.0,0.18193395]
[1760607405137,0.13530986,109940.0,109930.0,0.18193395]
[1760607405371,0.03014986,109940.0,109930.0,0.18193395]
[1760607405607,0.13526986,109940.0,109930.0,0.18193395]
[1760607405834,0.13522986,109940.0,109930.0,0.18193395]
[1760607406059,0.13522986,109940.0,109930.0,0.58193395]
[1760607406309,0.03014986,109940.0,109930.0,0.58193395]
[1760607406787,0.05,109970.0,109960.0,0.18188432]
[1760607407017,0.1817521,109970.0,109960.0,0.19147225]
[1760607407247,0.11,109970.0,109960.0,0.19147225]
[1760607407711,0.0717521,109990.0,109980.0,0.18185124]
[1760607407931,0.2767121,109990.0,109980.0,0.18185124]
[1760607408151,0.1,109990.0,109980.0,0.18185124]
[1760607408378,0.1,109990.0,109980.0,0.7164329]
[1760607408660,0.1,109990.0,109980.0,0.18185124]
[1760607408893,0.1,109990.0,109980.0,0.18141666]
[1760607409330,0.1,109990.0,109980.0,0.18185124]
[1760607409548,0.1,109990.0,109980.0,0.86870457]
[1760607410006,0.1,109990.0,109980.0,0.95838665]
[1760607410683,0.1,109990.0,109980.0,0.86870457]
[1760607410912,1e-08,109990.0,109980.0,0.95839469]
[1760607411141,0.18470083,110020.0,109990.0,0.00909173]
[1760607411361,0.30470083,110020.0,110010.0,0.18180165]
[1760607411580,0.30470083,110020.0,110010.0,0.86865498]
[1760607411799,0.23294873,110020.0,110010.0,0.86865498]
[1760607412239,0.12826873,110020.0,110010.0,0.86865498]
[1760607412512,0.23282873,110020.0,110010.0,0.18180165]
[1760607412732,0.24954836,110020.0,110000.0,0.86867102]
[1760607412967,0.23297918,110020.0,110010.0,0.18180165]
[1760607413189,0.23297918,110020.0,110010.0,0.1813671]
[1760607413419,0.23297918,110020.0,110010.0,0.18180165]
[1760607413640,0.24956652,110020.0,110010.0,0.18180165]
[1760607414314,0.24956694,110020.0,110000.0,0.68685333]
[1760607414539,4.320199,110010.0,109990.0,0.59092199]
[1760607414764,0.16485649,110010.0,110000.0,0.18181818]
[1760607414988,0.25254873,110010.0,110000.0,0.18181818]
[1760607415659,0.25254873,110010.0,109990.0,1.08685333]
[1760607415894,4.320199,109990.0,109950.0,0.1818865]
[1760607416135,4.320199,109990.0,109920.0,0.9404787]
[1760607416136,5.18892187,109970.0,109920.0,0.9404787]
[1760607416419,5.18892187,109970.0,109940.0,0.19101064]
[1760607416420,4.424439,109960.0,109940.0,0.19101064]
[1760607416655,0.10416,109950.0,109940.0,0.19101064]
[1760607416885,4.320199,109970.0,109960.0,0.18187494]
[1760607417114,0.12829348,109970.0,109960.0,0.18187494]
[1760607417343,0.12829348,109970.0,109960.0,0.00049372]
[1760607417570,0.23241348,109970.0,109960.0,0.18237804]
[1760607417794,4.46508543,109970.0,109960.0,0.18237804]
[1760607418031,4.56916543,109970.0,109960.0,0.00049372]
[1760607418261,4.46508543,109970.0,109960.0,0.00228505]
[1760607418498,4.56912543,109970.0,109960.0,0.00228505]
[1760607418718,4.75099321,109970.0,109960.0,0.00228505]
[1760607418941,4.56912543,109970.0,109960.0,0.00228505]
[1760607419407,4.64695321,109970.0,109960.0,0.00228505]
[1760607419849,4.75087321,109970.0,109960.0,0.00228505]
[1760607420072,4.56900543,109970.0,109960.0,0.00228505]
[1760607420336,4.46508543,109970.0,109960.0,0.00228505]
[1760607420791,5.77768654,109970.0,109960.0,0.00228505]
[1760607421239,4.80508543,109970.0,109960.0,0.00228505]
[1760607421453,0.14488643,109970.0,109960.0,0.18416937]
[1760607422140,0.12829348,109970.0,109960.0,0.8710227]
[1760607422361,0.12,109970.0,109960.0,0.18416937]
[1760607422620,0.12,109970.0,109960.0,0.8710227]
[1760607423160,0.12,109970.0,109960.0,1.2710227]
[1760607423373,0.12,109970.0,109960.0,1.40013148]
[1760607423624,0.2417521,110000.0,109990.0,0.18183471]
[1760607423625,0.0717521,110000.0,109990.0,0.18183471]
[1760607423855,0.20373559,110000.0,109990.0,0.62881577]
[1760607424078,0.13198349,110000.0,109990.0,0.62881577]
[1760607424318,0.13194349,110000.0,109990.0,0.18183471]
[1760607424564,0.02830349,110000.0,109990.0,0.62881577]
[1760607424809,0.13190349,110000.0,109990.0,0.26296111]
[1760607425042,0.02830349,110000.0,109990.0,0.62881577]
[1760607425752,0.02830273,110000.0,109990.0,0.62881577]
[1760607426209,0.02830273,110000.0,109990.0,1.02881577]
[1760607426655,0.02,110000.0,109990.0,1.02881577]
[1760607426876,0.04,110030.0,110020.0,0.18178512]
[1760607427096,0.2499728,110030.0,110020.0,0.18178512]
[1760607427327,0.1466128,110030.0,110020.0,0.18178512]
[1760607427542,0.13,110030.0,110020.0,0.18178512]
[1760607427759,0.23332,110030.0,110020.0,0.18178512]
[1760607427972,0.24993105,110030.0,110020.0,0.18178512]
[1760607428192,0.14676152,110030.0,110020.0,0.18178512]
[1760607428409,0.25008152,110030.0,110020.0,0.18178512]
[1760607428644,4.92861773,110030.0,109990.0,0.59092644]
[1760607428872,0.6287833,110010.0,109980.0,0.19153265]
[1760607429100,0.10324,110000.0,109990.0,0.18183471]
[1760607429314,0.14661105,110000.0,109990.0,0.18183471]
[1760607429543,0.24981105,110000.0,109990.0,0.18183471]
[1760607429765,0.24977105,110000.0,109990.0,0.18183471]
[1760607430000,0.14661105,110000.0,109990.0,0.18183471]
[1760607430228,0.24973105,110000.0,109980.0,0.18244582]
[1760607430453,0.14661105,110000.0,109990.0,0.18183471]
[1760607430701,0.24965105,110000.0,109990.0,0.20001818]
[1760607430918,0.24965105,110000.0,109980.0,0.000597]
[1760607431133,0.24965105,110000.0,109980.0,0.20063283]
[1760607431357,4.320199,109990.0,109980.0,0.18184974]
[1760607431579,4.320199,109980.0,109950.0,0.19093458]
[1760607431793,0.103,109970.0,109950.0,0.19099362]
[1760607432019,0.23961105,109970.0,109950.0,0.19099362]
[1760607432235,0.23961105,109970.0,109950.0,0.18190083]
[1760607432482,4.257836,109960.0,109930.0,0.18190969]
[1760607432719,4.154876,109950.0,109930.0,0.18241424]
[1760607432952,0.12661105,109950.0,109940.0,0.1819174]
[1760607433454,0.22949105,109950.0,109940.0,0.1819174]
[1760607433682,0.12661105,109950.0,109940.0,0.62889846]
[1760607433911,0.21284,109950.0,109940.0,0.68695436]
[1760607434144,0.11,109950.0,109940.0,0.2399733]
[1760607434368,0.13284,109950.0,109940.0,0.69605023]
[1760607434597,0.17,109980.0,109950.0,0.00909504]
[1760607434598,0.17158399,109980.0,109950.0,0.00909504]
[1760607434826,0.1481961,109980.0,109970.0,0.18186778]
[1760607435071,0.24933211,109980.0,109970.0,0.18186778]
[1760607435319,0.24933211,109980.0,109960.0,0.18187983]
[1760607435628,0.24933211,109980.0,109970.0,0.18186778]
[1760607435841,0.24929211,109980.0,109970.0,0.64703561]
[1760607436062,0.14676247,109980.0,109970.0,0.18186778]
[1760607436292,0.24940247,109980.0,109970.0,0.20005455]
[1760607436512,0.77125438,109980.0,109950.0,4e-05]
[1760607436742,4.70445706,109970.0,109950.0,4e-05]
[1760607436983,4.494876,109960.0,109950.0,4e-05]
[1760607437201,4.82337243,109960.0,109950.0,4e-05]
[1760607437426,5.37295253,109960.0,109950.0,4e-05]
[1760607437891,4.40404715,109960.0,109950.0,4e-05]
[1760607438113,4.40404715,109960.0,109950.0,0.18194086]
[1760607438358,0.14661115,109960.0,109950.0,0.18194086]
[1760607438815,0.13830248,109960.0,109950.0,0.62892192]
[1760607439035,0.13830248,109960.0,109950.0,0.18194086]
[1760607439260,0.24078248,109960.0,109950.0,0.18194086]
[1760607439536,0.13830205,109960.0,109950.0,0.62892192]
[1760607439759,0.24070205,109960.0,109950.0,0.18194086]
[1760607439978,0.13830205,109960.0,109950.0,0.18194086]
[1760607440223,0.24070205,109960.0,109950.0,0.18194086]
[1760607440448,0.2406625,109960.0,109950.0,0.62892192]
[1760607440669,0.2406625,109960.0,109950.0,0.26302466]
[1760607440895,0.2406625,109960.0,109950.0,0.62892192]
[1760607441115,0.13,109960.0,109950.0,1.02892192]
[1760607441556,0.13,109960.0,109950.0,1.11861204]
[1760607441778,0.00015036,109980.0,109970.0,0.62884884]
[1760607442023,0.0784577,109980.0,109970.0,0.68316653]
[1760607442250,1e-08,109980.0,109970.0,0.77285665]
[1760607442474,0.1739921,110010.0,110000.0,0.18181818]
[1760607442698,0.07392519,110010.0,110000.0,0.62929296]
[1760607442936,0.00217309,110010.0,110000.0,0.71898308]
[1760607443169,0.00217309,110010.0,110000.0,0.80866516]
[1760607443447,0.00217309,110010.0,110000.0,1.65564622]
[1760607443655,0.00217309,110010.0,110000.0,1.20866516]
[1760607443878,0.00217309,110010.0,110000.0,1.02929296]
[1760607444334,0.01217309,110010.0,110000.0,0.5823119]
[1760607444558,0.01217309,110010.0,110000.0,1.02929296]
[1760607444775,0.00217309,110010.0,110000.0,1.02929296]
[1760607445015,0.00217309,110010.0,110000.0,1.5659561]
[1760607445248,0.00217309,110010.0,110000.0,0.67199398]
[1760607445470,0.01217309,110010.0,110000.0,1.02929296]
[1760607445970,0.01217309,110010.0,110000.0,0.5823119]
[1760607446191,0.01217309,110010.0,110000.0,1.02929296]
[1760607446424,0.01217309,110010.0,110000.0,0.5823119]
[1760607446651,0.01217309,110010.0,110000.0,1.02929296]
[1760607447094,0.01217309,110010.0,110000.0,0.5823119]
[1760607447308,0.01217309,110010.0,110000.0,1.02929296]
[1760607449313,0.0717521,110060.0,110050.0,0.18173557]
[1760607449545,4.4583081,110060.0,110050.0,0.18173557]
[1760607449764,0.23168,110060.0,110050.0,0.18173557]
[1760607450649,0.13013678,110060.0,110050.0,0.18173557]
[1760607450888,0.23169678,110060.0,110050.0,0.18173557]
[1760607451139,0.13013678,110060.0,110050.0,0.18173557]
[1760607451827,0.13013678,110060.0,110050.0,0.62871663]
[1760607452046,0.23161678,110060.0,110050.0,0.18173557]
[1760607452263,0.13013678,110060.0,110050.0,0.18173557]
[1760607452512,0.13013678,110060.0,110050.0,0.62871663]
[1760607452728,0.13013678,110060.0,110050.0,0.18173557]
[1760607452951,0.13013678,110060.0,110050.0,0.62871663]
[1760607453171,0.13013678,110060.0,110050.0,0.69727813]
[1760607454313,0.1384296,110060.0,110050.0,1.09727813]
[1760607454532,0.1384296,110060.0,110050.0,0.58173557]
[1760607454975,0.24265208,110060.0,110050.0,0.58173557]
[1760607455440,0.24261208,110060.0,110050.0,0.18173557]
[1760607455889,0.10149409,110060.0,110010.0,0.03618228]
[1760607456135,4.154876,109990.0,109980.0,0.00217339]
[1760607456353,0.00909338,109970.0,109920.0,1e-08]
[1760607456596,0.00909338,109970.0,109940.0,0.22767094]
[1760607456597,3.14662716,109950.0,109940.0,0.22767094]
[1760607456824,0.15652218,109950.0,109940.0,0.40106304]
[1760607457047,0.01903323,109960.0,109940.0,0.32931094]
[1760607457277,0.44698106,109950.0,109940.0,0.22767094]
[1760607457499,0.44698106,109960.0,109940.0,0.23761738]
[1760607457730,0.46698106,109960.0,109940.0,0.13593738]
[1760607457973,2e-08,109960.0,109950.0,0.13523487]
[1760607458209,2e-08,109960.0,109950.0,0.08969012]
[1760607458431,0.44698108,109960.0,109940.0,0.3442665]
[1760607458652,0.1016,109970.0,109940.0,0.13593738]
[1760607458880,0.29496924,109950.0,109940.0,0.00049372]
[1760607459138,0.04,109950.0,109940.0,0.19150552]
[1760607459383,0.04,109950.0,109940.0,0.00049372]
[1760607459600,0.55800039,109950.0,109940.0,0.00049372]
[1760607459824,0.11101933,109950.0,109940.0,0.18241112]
[1760607460049,0.04,109950.0,109940.0,0.18241112]
[1760607460967,0.65960039,109950.0,109940.0,0.00049372]
[1760607461192,3.80622525,109950.0,109940.0,0.00049372]
[1760607461429,3.62432439,109950.0,109940.0,0.00049372]
[1760607461654,3.69924419,109950.0,109940.0,0.00049372]
[1760607461877,4.14622525,109950.0,109940.0,0.00049372]
[1760607462103,3.96432439,109950.0,109940.0,0.00049372]
[1760607462330,3.96432439,109950.0,109940.0,0.00586681]
[1760607462582,4.14622525,109950.0,109940.0,0.00586681]
[1760607462804,3.96432439,109950.0,109940.0,0.00586681]
[1760607463506,4.14622525,109950.0,109940.0,0.00586681]
[1760607464212,3.96432439,109950.0,109940.0,0.00586681]
[1760607464645,3.51734333,109950.0,109940.0,0.18778421]
[1760607464885,3.17734333,109950.0,109940.0,0.18778421]
[1760607465127,0.04,109950.0,109940.0,0.18778421]
[1760607465588,0.04,109950.0,109940.0,0.63476527]
[1760607466027,0.04,109950.0,109940.0,0.72444735]
[1760607466250,0.04,109950.0,109940.0,0.63476527]
[1760607466503,0.04,109950.0,109940.0,0.28906421]
[1760607467630,0.04,109950.0,109940.0,0.63476527]
[1760607467852,0.04,109950.0,109940.0,0.28894421]
[1760607468072,0.04,109950.0,109940.0,0.63476527]
[1760607468301,0.04,109950.0,109940.0,0.81759463]
[1760607468529,0.04,109950.0,109940.0,0.63476527]
[1760607468752,0.04,109950.0,109940.0,0.73588527]
[1760607469023,0.04,109950.0,109940.0,0.73600527]
[1760607470130,0.04,109950.0,109940.0,0.73596527]
[1760607470582,0.04,109950.0,109940.0,0.82565539]
[1760607470842,0.0717521,110000.0,109990.0,0.18183471]